bitfinex/quotes_ETHUSD_20251116
["timestamp","ask_amount","ask_price","bid_price","bid_amount"]
[1763254561634,0.59043986,3163.1,3163.0,3.16155548]
[1763254561839,1.03913986,3163.1,3162.9,0.406504]
[1763254562150,0.4548,3163.0,3162.9,4.2963722]
[1763254563220,0.0045,3163.0,3162.9,4.2963722]
[1763254563420,0.0045,3163.0,3162.9,4.72600942]
[1763254564055,0.4548,3163.0,3162.9,4.2963722]
[1763254567115,0.0045,3163.0,3162.9,4.2963722]
[1763254568832,0.002,3163.1,3162.9,7.45802764]
[1763254571675,0.2648,3163.0,3162.9,4.2963722]
[1763254573446,0.4775,3163.1,3163.0,0.405504]
[1763254573447,0.002,3163.1,3163.0,0.405504]
[1763254573647,0.002,3163.1,3163.0,2.57393226]
[1763254574535,0.2879,3163.1,3163.0,4.76648774]
[1763254575436,0.002,3163.1,3163.0,5.23828774]
[1763254576985,0.2896,3163.1,3163.0,4.76648774]
[1763254577284,0.7425,3163.1,3163.0,3.56705948]
[1763254577943,0.7425,3163.1,3163.0,3.16155548]
[1763254579441,0.2896,3163.1,3163.0,3.16155548]
[1763254581288,0.002,3163.1,3163.0,3.63335548]
[1763254581487,0.002,3163.1,3163.0,4.13055548]
[1763254581683,0.002,3163.1,3163.0,4.88155425]
[1763254581874,0.002,3163.1,3163.0,4.9131698]
[1763254582194,0.2879,3163.1,3163.0,4.40975425]
[1763254582394,0.7425,3163.1,3163.0,4.40975425]
[1763254582882,0.7425,3163.1,3163.0,3.56705948]
[1763254583082,0.2879,3163.1,3163.0,3.56705948]
[1763254585193,0.002,3163.1,3163.0,4.53605948]
[1763254587976,0.002,3163.1,3163.0,4.03885948]
[1763254588179,0.002,3163.1,3163.0,4.53605948]
[1763254588380,0.002,3163.1,3163.0,5.41930465]
[1763254592016,0.002,3163.1,3163.0,4.92210465]
[1763254592228,0.2879,3163.1,3163.0,4.45030465]
[1763254594400,0.002,3163.1,3163.0,4.45030465]
[1763254594600,0.002,3163.1,3163.0,4.90640465]
[1763254595526,0.002,3163.1,3163.0,4.45030465]
[1763254595829,0.2468,3163.1,3163.0,4.45030465]
[1763254597527,0.002,3163.1,3163.0,4.45030465]
[1763254597690,0.002,3163.1,3163.0,4.90640465]
[1763254600593,0.002,3163.1,3163.0,4.45030465]
[1763254602038,0.002,3163.1,3163.0,4.90640465]
[1763254604133,0.29867118,3163.1,3163.0,4.90640465]
[1763254606834,0.002,3163.1,3163.0,4.90640465]
[1763254609641,0.002,3163.1,3163.0,5.37640465]
[1763254611036,0.002,3163.1,3163.0,4.90640465]
[1763254613107,0.2468,3163.1,3163.0,1.28874917]
[1763254613306,1.03879351,3163.1,3162.9,0.001]
[1763254613638,0.54399351,3163.0,3162.9,0.001]
[1763254613843,1.03679351,3163.0,3162.9,0.001]
[1763254618833,0.54399351,3163.0,3162.9,0.001]
[1763254620921,0.54399351,3163.0,3162.9,0.4571]
[1763254620922,0.29669351,3163.0,3162.9,0.4571]
[1763254621820,0.29669351,3163.0,3162.9,4.93530096]
[1763254622153,1.03875404,3163.0,3162.9,0.001]
[1763254624722,0.29635404,3163.0,3162.9,0.9304]
[1763254624928,0.29635404,3163.0,3162.9,0.4759]
[1763254625162,0.74955404,3163.0,3162.9,0.001]
[1763254625676,1.03855404,3163.0,3162.9,0.001]
[1763254626426,15.25965824,3163.0,3162.5,0.001]
[1763254626659,15.25965824,3163.0,3162.4,0.001]
[1763254626660,7.46079392,3162.6,3162.4,0.001]
[1763254626927,0.78495404,3162.5,3162.4,0.001]
[1763254627157,1.91869484,3162.5,3162.4,0.001]
[1763254627332,2.04536029,3162.5,3162.2,0.001]
[1763254627533,3.85559696,3162.3,3162.2,0.001]
[1763254627764,3.85559696,3162.3,3161.7,0.001]
[1763254627765,4.151951,3162.3,3161.7,0.001]
[1763254627966,0.78745404,3162.2,3161.7,0.001]
[1763254628763,3.94980936,3162.2,3161.7,0.001]
[1763254629063,0.78745404,3162.2,3161.7,0.001]
[1763254629430,3.94980936,3162.2,3161.7,0.001]
[1763254630858,5.08355016,3162.2,3161.7,0.001]
[1763254633391,0.78745404,3162.2,3161.7,0.001]
[1763254634397,3.94980936,3162.2,3161.7,0.001]
[1763254634980,0.78745404,3162.2,3161.7,0.001]
[1763254635290,3.94980936,3162.2,3161.7,0.001]
[1763254636591,4.0764712,3162.2,3161.7,0.001]
[1763254636797,0.91411588,3162.2,3161.7,0.001]
[1763254637873,4.0764712,3162.2,3161.7,0.001]
[1763254638980,7.67916816,3162.2,3161.7,0.001]
[1763254641998,3.5904712,3162.2,3161.7,0.001]
[1763254642185,4.0564712,3162.2,3161.7,0.001]
[1763254642697,7.65916816,3162.2,3161.7,0.001]
[1763254646179,0.42301588,3162.2,3161.7,0.001]
[1763254646385,0.42301588,3162.2,3161.8,0.4814]
[1763254646579,3.8626712,3162.2,3161.8,0.4814]
[1763254646803,4.3267712,3162.2,3161.8,0.001]
[1763254647913,3.8626712,3162.2,3161.8,0.001]
[1763254648611,4.3267712,3162.2,3161.8,0.001]
[1763254649192,3.8626712,3162.2,3161.8,0.4814]
[1763254650506,0.70031588,3162.2,3161.8,0.4814]
[1763254650809,0.42501588,3162.2,3162.1,0.4545]
[1763254651007,0.29835404,3162.2,3162.1,0.4545]
[1763254651390,0.002,3162.2,3162.1,0.9349]
[1763254651810,0.002,3162.2,3162.1,1.133]
[1763254652380,0.002,3162.2,3162.1,1.6066697]
[1763254652582,0.002,3162.2,3162.1,4.76912503]
[1763254655921,0.29835404,3162.2,3162.1,5.06547907]
[1763254656101,0.002,3162.2,3162.1,5.06547907]
[1763254656298,0.29835404,3162.2,3162.1,5.06547907]
[1763254657515,0.002,3162.2,3162.1,5.06547907]
[1763254660831,0.002,3162.2,3162.1,4.59180937]
[1763254670313,0.7435,3162.2,3162.1,0.001]
[1763254670556,1.33512472,3162.2,3162.1,0.001]
[1763254670913,0.59362472,3162.2,3162.1,0.001]
[1763254671126,0.85212472,3162.2,3162.1,0.001]
[1763254671452,4.19936768,3162.2,3162.1,0.001]
[1763254672046,1.03701236,3162.2,3162.1,0.001]
[1763254672650,4.32602471,3162.2,3162.1,0.001]
[1763254673038,1.16366939,3162.2,3162.1,0.001]
[1763254675180,4.32602471,3162.2,3162.1,0.001]
[1763254675526,1.16366939,3162.2,3162.1,0.001]
[1763254676429,0.68296939,3162.2,3162.1,0.001]
[1763254676840,3.84532471,3162.2,3162.1,0.001]
[1763254677228,4.32602471,3162.2,3162.1,0.001]
[1763254677423,1.16366939,3162.2,3162.1,0.001]
[1763254677725,0.68296939,3162.2,3162.1,0.001]
[1763254677942,4.32602471,3162.2,3162.1,0.001]
[1763254678137,0.68296939,3162.2,3162.1,0.001]
[1763254678664,0.42446939,3162.2,3162.1,0.4519]
[1763254679162,0.68516939,3162.2,3162.1,0.001]
[1763254679750,0.29781236,3162.2,3162.1,0.4519]
[1763254680132,0.55631236,3162.2,3162.1,0.001]
[1763254680346,1.03701236,3162.2,3162.1,0.001]
[1763254681163,0.55631236,3162.2,3162.1,0.001]
[1763254681332,0.29781236,3162.2,3162.1,0.4519]
[1763254681526,0.29781236,3162.2,3162.1,0.9404]
[1763254681928,0.29781236,3162.2,3162.1,0.4519]
[1763254682769,4.19936768,3162.2,3162.1,0.001]
[1763254682965,0.55851236,3162.2,3162.1,0.001]
[1763254683266,0.29781236,3162.2,3162.1,0.001]
[1763254683467,0.56071236,3162.2,3162.1,0.001]
[1763254683641,4.19946768,3162.2,3162.1,0.001]
[1763254684048,1.03711236,3162.2,3162.1,0.001]
[1763254684466,4.19946768,3162.2,3162.1,0.001]
[1763254685035,1.03723577,3162.2,3162.1,0.001]
[1763254685230,4.19959109,3162.2,3162.1,0.001]
[1763254687453,4.19957214,3162.2,3162.1,0.001]
[1763254693873,3.72317214,3162.2,3162.1,0.001]
[1763254699159,0.29791682,3162.2,3162.1,1.162]
[1763254701122,0.29791682,3162.2,3162.1,0.4955]
[1763254706737,3.46027214,3162.2,3162.1,0.4955]
[1763254706952,4.19957214,3162.2,3162.1,0.001]
[1763254707608,3.73387214,3162.2,3162.1,0.001]
[1763254708120,4.19957214,3162.2,3162.1,0.001]
[1763254711406,5.33331294,3162.2,3162.1,0.001]
[1763254719257,5.4600145,3162.2,3162.1,0.001]
[1763254720970,5.4600145,3162.2,3161.4,0.001]
[1763254720971,3.56835942,3161.7,3161.4,0.001]
[1763254721282,4.92552309,3161.5,3161.4,0.001]
[1763254721564,5.22143991,3161.5,3161.4,0.001]
[1763254721737,5.68403991,3161.5,3161.4,0.001]
[1763254722258,5.81077117,3161.5,3161.4,0.001]
[1763254722966,4.71944439,3161.5,3161.4,0.001]
[1763254723130,5.29461313,3161.5,3161.4,0.001]
[1763254723327,8.67429142,3161.5,3161.4,0.001]
[1763254725052,8.21389142,3161.5,3161.4,0.001]
[1763254725251,4.83421313,3161.5,3161.4,0.001]
[1763254725462,5.29461313,3161.5,3161.4,0.001]
[1763254726864,1.42965762,3161.5,3161.4,0.4947]
[1763254727032,4.59271313,3161.5,3161.4,0.4947]
[1763254727227,5.08891313,3161.5,3161.4,0.001]
[1763254727429,8.69721333,3161.5,3161.4,0.001]
[1763254727627,8.69721333,3161.5,3160.8,0.001]
[1763254727862,8.69721333,3161.5,3160.6,0.001]
[1763254727863,1.7636448,3160.9,3160.6,0.001]
[1763254728166,5.356345,3160.7,3160.6,0.001]
[1763254728461,5.65226182,3160.7,3160.6,0.001]
[1763254728661,6.24162722,3160.7,3160.6,0.001]
[1763254729259,9.40548332,3160.7,3160.6,0.001]
[1763254730451,0.0312,3160.2,3158.4,0.16529591]
[1763254730689,3.6083002,3158.7,3158.4,0.16529591]
[1763254730842,1.1337408,3159.0,3158.6,0.4937]
[1763254731154,1.1337408,3159.0,3158.9,0.4937]
[1763254731350,4.59256272,3159.0,3158.9,0.4937]
[1763254731677,5.08626272,3159.0,3158.9,0.4937]
[1763254732042,8.48142144,3159.0,3158.3,0.1965]
[1763254732245,3.9015634,3158.9,3158.5,0.4559]
[1763254732566,0.2932632,3158.8,3158.5,0.4559]
[1763254733276,6.33151828,3158.8,3158.5,0.4559]
[1763254733480,0.0888,3158.6,3157.4,0.1965]
[1763254733682,4.742041,3158.7,3157.4,0.1965]
[1763254733683,3.6083002,3157.5,3157.4,0.1965]
[1763254733851,3.6083002,3157.5,3157.4,0.4937]
[1763254734171,0.4559,3157.5,3157.4,0.4937]
[1763254734778,3.6083002,3157.7,3157.4,0.4937]
[1763254734991,4.1020002,3157.7,3157.4,0.4937]
[1763254735572,3.6083002,3157.5,3157.4,0.4937]
[1763254736165,5.021541,3157.5,3155.9,0.1965]
[1763254736366,12.66784896,3157.6,3156.0,0.4559]
[1763254736367,3.6083002,3156.6,3156.0,0.4559]
[1763254736980,0.95184157,3156.5,3156.0,0.4559]
[1763254737667,6.33633252,3156.4,3156.0,0.4559]
[1763254738069,3.16816626,3156.4,3156.3,0.4937]
[1763254738802,0.95184157,3156.5,3156.3,0.9496]
[1763254738803,3.16809231,3156.5,3156.3,0.9496]
[1763254739000,3.16809231,3156.5,3156.4,0.4937]
[1763254739188,3.16809231,3156.5,3156.4,0.9496]
[1763254739391,0.405504,3156.4,3155.0,0.1965]
[1763254739606,1.1337408,3156.2,3155.5,0.4559]
[1763254740195,1.1337408,3156.2,3156.1,0.4937]
[1763254740405,0.4937,3156.7,3156.1,0.6902]
[1763254740709,3.16716285,3157.4,3156.6,0.4937]
[1763254740865,3.16716285,3157.4,3156.7,0.4559]
[1763254740866,1.24246287,3157.3,3156.7,0.4559]
[1763254741065,0.9516272,3157.3,3156.7,0.4559]
[1763254741269,2.085368,3157.3,3156.7,0.4559]
[1763254741591,6.33412508,3157.5,3157.2,0.4937]
[1763254741792,5.25237621,3157.5,3157.4,0.4937]
[1763254742112,4.30080334,3157.5,3157.4,0.6902]
[1763254742273,0.95144913,3157.9,3157.4,1.1461]
[1763254742489,0.95144913,3157.9,3157.6,0.4937]
[1763254742713,1.1337408,3158.0,3157.6,0.4937]
[1763254742909,0.29074108,3157.9,3157.6,0.4937]
[1763254743113,0.0865,3157.7,3156.6,0.4559]
[1763254743314,0.1938,3157.5,3156.3,0.4559]
[1763254743633,9.50148855,3157.4,3156.3,0.4559]
[1763254743786,0.29069986,3157.3,3156.3,0.4559]
[1763254743991,0.75329986,3157.3,3156.3,0.4559]
[1763254744224,0.29060268,3157.2,3156.3,0.4559]
[1763254744396,0.74510268,3157.2,3156.3,0.4559]
[1763254744601,9.50148855,3157.4,3156.3,0.4559]
[1763254744798,0.29062097,3157.3,3156.3,0.4559]
[1763254745601,1.1337408,3157.1,3156.3,0.4559]
[1763254747797,4.30130494,3157.0,3156.9,0.001]
[1763254749394,4.30130494,3157.0,3156.9,0.474]
[1763254749395,4.59218768,3157.0,3156.9,0.474]
[1763254750533,4.59218768,3157.0,3156.9,0.001]
[1763254750837,4.87968768,3157.0,3156.9,0.001]
[1763254751215,5.04521586,3157.0,3156.9,0.001]
[1763254752128,4.75771586,3157.0,3156.9,0.4913]
[1763254753433,4.75771586,3157.0,3156.9,0.001]
[1763254753434,5.04521586,3157.0,3156.9,0.001]
[1763254754625,4.75771586,3157.0,3156.9,0.001]
[1763254756543,4.75771586,3157.0,3156.9,0.4913]
[1763254756862,1.59015172,3157.0,3156.9,0.4913]
[1763254757040,3.62601422,3157.0,3156.9,0.9451]
[1763254759549,0.45845008,3157.0,3156.9,0.9451]
[1763254759849,3.62601422,3157.0,3156.9,0.9451]
[1763254760358,0.45845008,3157.0,3156.9,0.9451]
[1763254760523,0.2929219,3157.0,3156.9,0.9451]
[1763254766581,0.2929219,3157.0,3156.9,4.11276448]
[1763254766955,0.2929219,3157.0,3156.9,0.9451]
[1763254768473,0.2929219,3157.0,3156.9,0.4913]
[1763254768675,0.2929219,3157.0,3156.9,0.9451]
[1763254770043,0.2929219,3157.0,3156.9,4.11276448]
[1763254770245,0.2929219,3157.0,3156.9,1.3563836]
[1763254770482,0.2929219,3157.0,3156.9,0.9451]
[1763254770642,0.2929219,3157.0,3156.9,4.11276448]
[1763254772382,0.2929219,3157.0,3156.9,0.9451]
[1763254774558,0.2929219,3157.0,3156.9,0.4913]
[1763254774780,0.2929219,3157.0,3156.9,0.9492]
[1763254775663,0.29530525,3157.0,3156.9,0.9492]
[1763254777790,0.2952902,3157.0,3156.9,0.9492]
[1763254779487,0.2952902,3157.0,3156.9,4.11686448]
[1763254779886,0.2952902,3157.0,3156.9,0.9492]
[1763254782207,0.2952902,3157.0,3156.9,4.11686448]
[1763254782415,0.2952902,3157.0,3156.9,4.84532688]
[1763254782909,3.16661759,3158.0,3156.9,8.01299136]
[1763254783077,0.29540856,3157.9,3157.0,0.4579]
[1763254783410,0.29540856,3157.8,3157.1,0.1891]
[1763254783610,0.29540856,3157.7,3157.1,0.1891]
[1763254783846,0.29540856,3157.6,3157.2,0.4579]
[1763254783974,0.29540856,3157.5,3157.2,0.4579]
[1763254784170,0.29540856,3157.4,3157.2,0.4579]
[1763254784405,0.29540856,3157.3,3157.2,3.62526348]
[1763254784907,0.29540856,3157.3,3157.2,4.08126348]
[1763254787309,0.29540856,3157.3,3157.2,0.456]
[1763254788180,0.29540856,3157.3,3156.9,0.001]
[1763254788181,1.03580856,3157.3,3156.9,0.001]
[1763254788417,0.30030856,3157.2,3156.9,0.001]
[1763254788624,0.29540856,3157.1,3156.9,0.001]
[1763254788824,0.29540856,3157.0,3156.9,0.001]
[1763254789027,0.29540856,3157.0,3156.9,0.457]
[1763254790318,0.29540856,3157.0,3156.9,0.9149]
[1763254793225,0.29540856,3157.0,3156.9,4.08256448]
[1763254795127,0.29540856,3157.0,3156.9,0.9149]
[1763254795733,0.29540856,3157.0,3156.9,4.08256448]
[1763254796120,0.29540856,3157.0,3156.9,0.001]
[1763254796121,0.54440856,3157.0,3156.9,0.001]
[1763254796345,5.3371135,3157.0,3156.9,0.001]
[1763254797221,1.1337408,3156.9,3156.5,0.001]
[1763254797563,4.72452231,3156.6,3156.5,0.001]
[1763254797712,5.01993087,3156.6,3156.5,0.001]
[1763254797912,5.51383087,3156.6,3156.5,0.001]
[1763254798912,2.12334936,3156.6,3156.5,0.001]
[1763254799339,5.29131489,3156.6,3156.5,0.001]
[1763254800746,10.04081711,3156.6,3156.5,0.001]
[1763254802838,10.89559446,3156.6,3156.5,0.001]
[1763254804455,0.2436,3156.3,3154.9,0.00106985]
[1763254804643,0.2416,3155.0,3154.9,0.00106985]
[1763254805353,0.2416,3155.0,3154.5,0.649]
[1763254805354,0.2416,3155.0,3152.6,1.70332091]
[1763254805355,1.1337408,3154.8,3152.6,1.70332091]
[1763254805556,4.74950222,3153.5,3152.1,0.1996]
[1763254805759,0.29540856,3153.4,3152.1,0.6595]
[1763254806255,0.6595,3153.3,3152.2,0.4599]
[1763254806418,0.6595,3153.3,3152.3,0.3831984]
[1763254806619,0.6595,3153.3,3152.1,0.1996]
[1763254806620,0.75175834,3153.2,3152.1,0.1996]
[1763254806815,0.4592,3153.2,3152.1,0.6595]
[1763254807020,1.88553826,3153.1,3151.9,0.1996]
[1763254807254,0.29259746,3153.0,3151.9,0.6595]
[1763254807433,6.34336642,3152.9,3151.9,0.6595]
[1763254807757,0.1434,3152.9,3151.9,0.6595]
[1763254807957,1.1187,3153.3,3152.0,0.4599]
[1763254808124,1.1337408,3153.1,3152.1,0.1996]
[1763254808451,1.1337408,3153.1,3152.1,0.6027749]
[1763254808755,1.1337408,3153.1,3152.2,0.4599]
[1763254808966,4.2900053,3153.3,3152.2,0.4599]
[1763254809116,1.5929408,3153.2,3152.2,0.4599]
[1763254809322,3.17148203,3153.1,3151.9,0.1996]
[1763254809629,1.1337408,3153.0,3151.9,0.1996]
[1763254809826,1.5929408,3153.0,3151.9,0.1996]
[1763254810018,0.6578,3152.9,3151.9,0.1996]
[1763254810240,0.6578,3152.9,3152.0,0.4599]
[1763254810449,0.4592,3152.8,3152.0,0.4599]
[1763254810868,0.4592,3152.8,3151.9,0.1996]
[1763254811329,3.17188441,3152.7,3151.9,0.6595]
[1763254811735,6.80296882,3152.7,3151.9,0.6595]
[1763254812320,6.34376882,3152.7,3151.9,0.6595]
[1763254812669,6.34357528,3152.8,3151.9,0.6595]
[1763254812875,6.80277528,3152.8,3151.9,0.6595]
[1763254813166,4.74950222,3152.5,3151.5,0.1995]
[1763254813370,0.4254,3152.0,3151.0,0.4625]
[1763254813656,4.74950222,3152.5,3151.0,0.4625]
[1763254813657,3.1722869,3152.3,3151.2,0.1995]
[1763254813957,6.3445738,3152.3,3151.2,0.1995]
[1763254814120,0.4512,3152.2,3151.2,0.1995]
[1763254814325,0.4333,3151.3,3150.9,0.1996]
[1763254815235,0.748,3151.3,3150.7,0.4625]
[1763254815570,3.17329857,3151.3,3149.9,0.1996]
[1763254815770,1.1337408,3151.4,3150.0,0.4625]
[1763254815935,0.4512,3151.2,3150.1,0.38367456]
[1763254816132,0.4512,3151.2,3149.6,1.29922714]
[1763254816469,1.1337408,3151.0,3149.7,0.4625]
[1763254816670,1.1337408,3151.0,3149.5,0.4625]
[1763254816964,0.5518,3150.9,3149.5,0.4625]
[1763254817467,6.34779572,3150.7,3149.5,0.4625]
[1763254817683,6.34779572,3150.7,3149.6,0.15962408]
[1763254817917,0.4512,3150.6,3149.6,0.15962408]
[1763254818060,0.4512,3150.6,3149.7,0.4625]
[1763254818570,0.4512,3150.6,3149.4,1.5962408]
[1763254819002,1.5849408,3150.6,3149.4,0.4625]
[1763254819160,1.5849408,3150.6,3149.1,0.4625]
[1763254819362,0.4512,3150.5,3149.1,0.4625]
[1763254819598,1.1337408,3150.3,3149.1,0.4625]
[1763254819797,1.1337408,3150.3,3149.0,0.1995]
[1763254819798,1.1337408,3150.1,3149.0,0.1995]
[1763254819960,0.405504,3150.2,3148.8,0.10568764]
[1763254820175,0.4512,3150.1,3148.8,0.56818764]
[1763254821181,1.1337408,3149.9,3148.8,0.56818764]
[1763254821608,1.1337408,3149.9,3148.8,0.10568764]
[1763254821609,1.1337408,3149.7,3148.8,0.10568764]
[1763254822170,1.1337408,3149.7,3146.0,0.15660709]
[1763254822171,0.6074,3148.9,3146.0,0.15660709]
[1763254822368,4.74950222,3148.1,3147.1,0.1995]
[1763254822606,1.1337408,3148.0,3147.1,0.1995]
[1763254822799,1.5849408,3148.0,3147.1,0.1995]
[1763254823001,0.394,3147.2,3146.2,0.4625]
[1763254823202,0.394,3147.2,3145.9,3.37821194]
[1763254823203,0.0039,3147.0,3145.9,0.662]
[1763254823406,0.0039,3147.0,3146.0,0.4625]
[1763254823768,0.1496,3146.9,3146.1,0.1995]
[1763254824071,6.35465318,3147.3,3146.1,0.1995]
[1763254824072,0.4512,3147.5,3146.1,0.662]
[1763254824420,0.171,3148.9,3146.1,0.662]
[1763254824421,0.95395421,3147.9,3147.4,0.6671]
[1763254824714,3.35712397,3148.8,3147.8,0.4676]
[1763254824878,3.35712397,3148.8,3147.4,0.1995]
[1763254824879,0.95429104,3148.3,3147.4,0.1995]
[1763254825078,0.95429104,3148.3,3147.4,0.662]
[1763254825290,0.95429104,3148.3,3147.4,0.1995]
[1763254825496,0.16597679,3148.5,3147.6,3.17702376]
[1763254825690,0.16597679,3148.5,3147.5,3.63960015]
[1763254825901,0.95426069,3148.4,3147.5,3.63960015]
[1763254826097,0.95426069,3148.4,3147.6,0.4625]
[1763254826615,0.95426069,3148.4,3147.4,0.1995]
[1763254826921,0.856704,3148.3,3146.6,0.4625]
[1763254827108,0.856704,3148.3,3146.2,3.17842947]
[1763254827109,0.856704,3148.3,3147.1,0.1995]
[1763254827423,0.4512,3148.2,3147.1,0.1995]
[1763254827717,1.1337408,3148.0,3147.1,0.1995]
[1763254828213,0.1813,3147.9,3147.1,0.1995]
[1763254829580,3.1768219,3147.8,3147.1,0.1995]
[1763254829778,3.35803665,3147.9,3147.1,0.662]
[1763254830382,6.5347733,3147.9,3147.1,0.1995]
[1763254830585,3.35803665,3147.9,3147.1,0.1995]
[1763254830785,6.5347733,3147.9,3147.1,0.1995]
[1763254831017,1.3150408,3147.9,3147.1,0.1995]
[1763254831321,5.70376291,3148.4,3147.8,0.4676]
[1763254831322,0.95426069,3148.4,3147.8,0.4676]
[1763254831622,0.1813,3150.0,3148.4,3.17621649]
[1763254831623,0.6325,3149.3,3148.4,3.17621649]
[1763254831819,0.1813,3149.3,3148.4,0.9301]
[1763254832116,0.1813,3149.3,3147.4,7.92667012]
[1763254832117,1.5849408,3149.2,3148.1,0.1995]
[1763254832421,4.74950222,3149.1,3147.6,0.4625]
[1763254832620,0.2954,3148.2,3147.1,0.662]
[1763254832916,0.2954,3148.2,3147.1,3.83952757]
[1763254833117,0.4512,3148.1,3147.1,0.662]
[1763254833584,1.1337408,3147.9,3147.0,0.001]
[1763254833920,1.1337408,3147.9,3147.1,0.1995]
[1763254834115,0.1813,3147.8,3147.1,0.1995]
[1763254834714,1.1337408,3148.0,3147.1,0.6624]
[1763254835080,1.1337408,3148.1,3147.2,0.4629]
[1763254835690,3.17662007,3148.0,3147.2,0.4629]
[1763254835907,3.35773858,3148.2,3147.2,3.64030891]
[1763254836213,3.35773858,3148.2,3147.3,0.4629]
[1763254836386,1.1337408,3148.2,3147.3,0.4629]
[1763254837822,1.1337408,3148.8,3147.4,3.17722564]
[1763254837993,3.17571215,3148.9,3147.4,6.35445128]
[1763254837994,0.29025311,3148.7,3147.4,6.35445128]
[1763254838331,1.42399391,3148.8,3147.5,0.4629]
[1763254838507,0.29025311,3148.7,3147.5,0.4629]
[1763254838688,0.78885311,3148.7,3147.5,0.4629]
[1763254838885,0.405504,3148.5,3147.1,0.6624]
[1763254839099,0.69575711,3148.5,3147.1,3.83991548]
[1763254839415,0.4986,3148.4,3147.2,0.4629]
[1763254839621,0.29025311,3148.3,3147.2,0.4629]
[1763254840187,3.17641827,3148.2,3147.3,3.17732659]
[1763254840721,1.1337408,3148.2,3147.3,3.64022659]
[1763254841334,0.29138643,3148.1,3147.3,3.64022659]
[1763254841909,0.29138643,3148.1,3147.3,0.4629]
[1763254842324,0.29138643,3148.1,3147.3,3.64018901]
[1763254842517,3.46791438,3148.1,3147.3,3.64018901]
[1763254842701,0.29138643,3148.0,3147.3,3.64018901]
[1763254842902,0.29138643,3148.0,3147.3,0.4629]
[1763254843136,0.29138643,3148.0,3147.3,3.64022372]
[1763254843310,3.46799892,3148.1,3147.3,3.64022372]
[1763254843500,0.29138643,3148.0,3147.3,3.64022372]
[1763254844086,0.47268643,3147.9,3147.0,0.001]
[1763254844337,6.35384566,3147.7,3147.0,0.001]
[1763254844511,0.29138643,3147.6,3147.0,0.001]
[1763254844842,0.29138643,3147.5,3147.0,0.001]
[1763254845004,0.29138643,3147.4,3147.0,0.001]
[1763254845203,0.29138643,3147.4,3146.4,3.17921041]
[1763254845204,0.1984,3147.1,3144.0,1.70332091]
[1763254845400,0.1984,3147.1,3141.4,7.38732153]
[1763254845401,0.0423,3144.1,3143.4,0.65455718]
[1763254845601,0.0423,3144.1,3143.1,0.1983]
[1763254845602,0.29284589,3144.0,3143.1,0.1983]
[1763254845837,0.29284589,3143.9,3143.2,0.4629]
[1763254846035,0.29284589,3143.8,3143.2,0.4629]
[1763254846241,0.29284589,3143.9,3143.2,0.4629]
[1763254846435,0.405504,3144.0,3143.2,0.4629]
[1763254846638,0.405504,3144.0,3143.3,1.63513218]
[1763254846840,0.29252276,3144.3,3143.4,0.51665448]
[1763254847040,0.95539575,3144.4,3143.1,0.1112]
[1763254847340,0.29252276,3144.3,3143.1,0.1112]
[1763254848064,5.04202498,3144.3,3143.1,0.1112]
[1763254848358,5.04202498,3144.3,3142.3,0.10753771]
[1763254848359,1.2745408,3143.2,3142.3,0.10753771]
[1763254848503,0.29252276,3143.1,3142.3,0.10753771]
[1763254848702,0.29252276,3143.1,3142.3,0.57043771]
[1763254848914,3.32167995,3143.8,3142.3,7.33029702]
[1763254849167,0.29198298,3143.7,3142.4,0.4629]
[1763254849454,0.29198298,3143.7,3142.1,3.38078926]
[1763254849456,0.29198298,3143.6,3142.1,0.1983]
[1763254849633,6.50252784,3143.8,3142.1,0.1983]
[1763254849634,0.29198298,3143.5,3142.4,0.4629]
[1763254849946,0.29198298,3143.7,3142.4,0.4629]
[1763254850108,4.6262352,3143.6,3142.4,0.4629]
[1763254850464,0.1813,3142.5,3141.6,0.4629]
[1763254850641,0.29198298,3143.1,3141.2,3.64639675]
[1763254850951,0.29198298,3143.1,3143.0,0.001]
[1763254851132,0.29198298,3143.1,3141.1,3.38187923]
[1763254851449,4.6262352,3142.9,3141.1,6.56543992]
[1763254851745,4.6262352,3142.9,3141.1,0.1983]
[1763254851980,0.95165193,3142.8,3142.7,0.001]
[1763254852255,0.1984,3142.8,3142.7,0.001]
[1763254852417,3.32174446,3143.8,3142.7,0.001]
[1763254852418,0.4986,3143.7,3142.7,0.001]
[1763254852751,0.4986,3144.3,3142.7,0.001]
[1763254853042,8.3048002,3144.7,3142.7,0.001]
[1763254853260,0.194,3144.5,3142.8,0.4629]
[1763254853440,0.4986,3144.6,3142.8,0.4629]
[1763254853607,0.83047918,3144.5,3142.8,0.4629]
[1763254854247,0.83047918,3144.5,3142.9,9.54532437]
[1763254854449,0.83047918,3144.5,3143.0,0.4629]
[1763254854958,4.01063518,3144.5,3143.1,0.1983]
[1763254855255,0.81606962,3144.4,3143.1,0.1983]
[1763254855498,0.31746962,3144.4,3143.1,0.6612]
[1763254855652,3.32065265,3144.8,3143.1,0.6612]
[1763254855846,3.32065265,3144.8,3143.2,0.4629]
[1763254855847,0.1408,3144.8,3143.2,0.4629]
[1763254856344,4.6262352,3145.5,3143.2,0.4629]
[1763254856345,0.29006853,3144.9,3143.4,4.6262352]
[1763254856549,0.95546422,3145.1,3143.5,1.1337408]
[1763254856744,0.95546422,3145.1,3143.6,0.5759976]
[1763254856988,0.1984,3143.6,3140.7,4.6262352]
[1763254857202,0.1984,3143.6,3142.2,0.4629]
[1763254857499,0.4986,3143.5,3142.2,0.4629]
[1763254858243,0.4986,3143.5,3141.6,0.4629]
[1763254858244,0.1984,3142.8,3141.6,0.4629]
[1763254858444,3.38027603,3142.8,3141.6,0.4629]
[1763254858676,4.53507986,3142.8,3141.6,0.4629]
[1763254858901,5.17022066,3142.8,3140.0,0.1983]
[1763254859050,5.17022066,3142.8,3139.0,1.02958855]
[1763254859051,4.6262352,3140.9,3139.0,0.1983]
[1763254859385,0.153,3142.0,3139.8,4.6262352]